bitfinex-derivatives/quotes_BTCF0:USTF0_20250411
["timestamp","ask_amount","ask_price","bid_price","bid_amount"]
[1744368308628,7.291e-05,82695.0,82693.0,0.1865993]
[1744368309032,0.28936521,82697.0,82693.0,0.1865993]
[1744368309435,0.65016521,82697.0,82693.0,0.1865993]
[1744368309635,0.0308,82696.0,82693.0,0.1536993]
[1744368309836,0.36174651,82694.0,82693.0,0.1536993]
[1744368310541,0.42654651,82694.0,82693.0,0.1536993]
[1744368311539,0.54754431,82694.0,82693.0,0.1536993]
[1744368311933,0.42654651,82694.0,82693.0,0.1536993]
[1744368312640,0.1858378,82694.0,82693.0,0.1209993]
[1744368312840,0.1815026,82692.0,82691.0,0.1210009]
[1744368313538,0.2420118,82690.0,82689.0,0.1210042]
[1744368313838,0.1210096,82686.0,82684.0,0.1210124]
[1744368314035,0.1210096,82686.0,82683.0,0.0338]
[1744368314236,0.1843096,82686.0,82685.0,0.12119243]
[1744368315645,0.5451096,82686.0,82685.0,0.12119243]
[1744368316145,0.5451096,82686.0,82685.0,0.15359243]
[1744368316334,0.4241,82686.0,82685.0,0.15359243]
[1744368316733,0.42414,82686.0,82685.0,0.15359243]
[1744368317837,0.03114,82686.0,82685.0,0.15359243]
[1744368318139,4e-05,82686.0,82685.0,0.18639243]
[1744368318646,0.3608,82694.0,82693.0,0.1209993]
[1744368318946,0.4817978,82694.0,82693.0,0.1209993]
[1744368319132,0.5155978,82694.0,82693.0,0.1517993]
[1744368319734,0.3946,82694.0,82693.0,0.1517993]
[1744368321038,0.4817978,82694.0,82693.0,0.1517993]
[1744368321244,0.0004,82698.0,82697.0,0.1209935]
[1744368321438,0.0004,82698.0,82697.0,0.1517935]
[1744368322436,0.00044,82698.0,82697.0,0.1517935]
[1744368324436,0.00044,82698.0,82692.0,0.0605003]
[1744368324437,0.1210096,82686.0,82661.0,0.21562794]
[1744368324743,0.1815492,82672.0,82671.0,0.1210258]
[1744368325044,0.1210418,82664.0,82663.0,0.21562794]
[1744368325248,0.4818418,82664.0,82663.0,0.21562794]
[1744368326643,0.1210491,82659.0,82658.0,0.28689499]
[1744368326841,0.4818491,82659.0,82658.0,0.28689499]
[1744368327040,0.7318491,82659.0,82658.0,0.28689499]
[1744368327238,0.7318491,82659.0,82658.0,0.18709499]
[1744368327551,0.1210579,82653.0,82652.0,0.35909587]
[1744368327744,0.4818579,82653.0,82652.0,0.35909587]
[1744368328747,0.4818979,82653.0,82652.0,0.35909587]
[1744368329550,0.3608,82653.0,82652.0,0.48015517]
[1744368329755,0.4818476,82662.0,82661.0,0.1210419]
[1744368329957,0.3608,82662.0,82654.0,0.0605278]
[1744368330141,0.4818579,82655.0,82654.0,0.0605278]
[1744368330653,0.1210579,82653.0,82652.0,0.1210584]
[1744368332945,0.1210593,82652.0,82651.0,0.00048396]
[1744368335445,0.1210593,82652.0,82651.0,0.12154476]
[1744368335850,0.1210993,82652.0,82651.0,0.12154476]
[1744368336150,0.1210593,82652.0,82651.0,0.12154476]
[1744368336352,0.1210993,82652.0,82651.0,0.12154476]
[1744368337449,0.1210993,82652.0,82651.0,0.18534476]
[1744368337851,0.1522993,82652.0,82651.0,0.18534476]
[1744368340247,0.1822993,82652.0,82651.0,0.03368396]
[1744368340444,0.1822993,82652.0,82651.0,0.15474476]
[1744368342261,0.1822993,82652.0,82651.0,0.03368396]
[1744368342557,0.1822993,82652.0,82651.0,0.00048396]
[1744368343453,0.1822993,82652.0,82651.0,0.12154476]
[1744368343650,0.1522993,82652.0,82651.0,0.00048396]
[1744368344152,0.1522593,82652.0,82651.0,0.00048396]
[1744368344355,0.1825993,82652.0,82651.0,0.00048396]
[1744368344759,0.1825993,82652.0,82651.0,0.12154476]
[1744368344955,0.1825993,82652.0,82651.0,0.00048396]
[1744368345545,0.5433993,82652.0,82651.0,0.00048396]
[1744368345956,0.5432993,82652.0,82651.0,0.00048396]
[1744368346963,0.5431993,82652.0,82651.0,0.00048396]
[1744368347762,0.1209784,82639.0,82638.0,0.1512798]
[1744368347952,0.4817784,82639.0,82638.0,0.1512798]
[1744368348153,0.5432784,82639.0,82638.0,0.1512798]
[1744368348654,0.5432784,82639.0,82638.0,0.0302]
[1744368348859,0.1816322,82634.0,82633.0,0.1210861]
[1744368349060,0.1816322,82634.0,82633.0,0.1512861]
[1744368350160,0.1815322,82634.0,82633.0,0.1512861]
[1744368350761,0.0603436,82634.0,82631.0,0.0313]
[1744368350957,0.1210945,82628.0,82627.0,0.2134229]
[1744368351855,0.10812083,82636.0,82635.0,0.1210842]
[1744368352268,0.10816083,82636.0,82635.0,0.1210842]
[1744368352672,0.10802083,82636.0,82635.0,0.1210842]
[1744368352874,0.10806083,82636.0,82635.0,0.1210842]
[1744368353371,0.10796083,82636.0,82635.0,0.1210842]
[1744368354169,0.10786083,82636.0,82635.0,0.1210842]
[1744368354875,0.10776083,82636.0,82635.0,0.1210842]
[1744368355568,0.10766083,82636.0,82635.0,0.1210842]
[1744368356274,0.10766083,82636.0,82634.0,0.01193957]
[1744368356275,0.14419682,82645.0,82644.0,0.1210711]
[1744368356468,0.14409682,82645.0,82644.0,0.1210711]
[1744368356669,0.26516642,82645.0,82644.0,0.1210711]
[1744368357465,0.14399682,82645.0,82644.0,0.1210711]
[1744368358167,0.14389682,82645.0,82644.0,0.1210711]
[1744368358471,0.14393682,82645.0,82644.0,0.1210711]
[1744368360379,5.401e-05,82650.0,82649.0,0.1210637]
[1744368360570,0.18043055,82655.0,82654.0,0.1210564]
[1744368360770,0.21700967,82665.0,82664.0,0.1210418]
[1744368361174,0.21695566,82665.0,82664.0,0.1210418]
[1744368361480,0.0004,82674.0,82673.0,0.1210286]
[1744368362272,0.00044,82674.0,82673.0,0.1210286]
[1744368362468,0.00018154,82682.0,82673.0,0.3710286]
[1744368362675,0.00018154,82682.0,82681.0,0.1210169]
[1744368363469,0.00018154,82682.0,82681.0,0.1521169]
[1744368363775,0.12119694,82682.0,82681.0,0.1521169]
[1744368364784,0.12119694,82682.0,82680.0,0.0329]
[1744368364785,0.1210169,82681.0,82680.0,0.0329]
[1744368364987,0.1210183,82680.0,82679.0,0.1210195]
[1744368365187,0.4818183,82680.0,82679.0,0.1210195]
[1744368365377,0.4855099,82680.0,82673.0,0.00018142]
[1744368365580,0.1210271,82674.0,82673.0,0.00018142]
[1744368365976,0.1210418,82665.0,82664.0,0.1210409]
[1744368366185,0.4818418,82665.0,82664.0,0.1210409]
[1744368366586,0.5460418,82665.0,82664.0,0.1210409]
[1744368367083,0.1210418,82664.0,82662.0,0.0605216]
[1744368367288,0.1210418,82664.0,82661.0,0.0329]
[1744368367289,0.1210447,82662.0,82661.0,0.2144676]
[1744368367789,0.1865447,82662.0,82661.0,0.2144676]
[1744368368184,0.1865447,82662.0,82661.0,0.2786676]
[1744368368779,0.1210579,82654.0,82653.0,0.0605264]
[1744368368988,0.1210593,82652.0,82651.0,0.18207156]
[1744368369190,0.1210593,82652.0,82651.0,0.24260146]
[1744368369691,0.1841593,82652.0,82651.0,0.24260146]
[1744368369886,0.1841593,82652.0,82651.0,0.00048396]
[1744368370091,0.5449593,82652.0,82651.0,0.00048396]
[1744368370995,0.5449593,82652.0,82651.0,0.12154476]
[1744368371389,0.0327,82652.0,82651.0,0.12154476]
[1744368371589,0.1525478,82661.0,82660.0,0.1210476]
[1744368371781,0.1839478,82661.0,82660.0,0.1847476]
[1744368372288,0.1839878,82661.0,82660.0,0.1847476]
[1744368372595,0.1839878,82661.0,82660.0,0.1210476]
[1744368372987,0.1210491,82659.0,82658.0,0.0605245]
[1744368373387,0.1210491,82659.0,82652.0,0.0637]
[1744368373388,0.2421132,82656.0,82655.0,0.0605273]
[1744368373590,0.6029132,82656.0,82655.0,0.0605273]
[1744368374499,0.1210593,82652.0,82646.0,0.0605338]
[1744368374794,0.1210593,82652.0,82646.0,0.0605334]
[1744368374989,0.1846593,82652.0,82646.0,0.0605334]
[1744368375297,0.5454593,82652.0,82644.0,0.12107]
[1744368375489,0.5454593,82652.0,82645.0,0.1210687]
[1744368375691,0.5454593,82652.0,82645.0,0.1210689]
[1744368375894,0.5454593,82652.0,82642.0,0.0926369]
[1744368376394,0.3608,82659.0,82658.0,0.1210505]
[1744368376594,0.4818491,82659.0,82658.0,0.1210505]
[1744368376802,0.4818891,82659.0,82658.0,0.2161505]
[1744368377188,0.4818891,82659.0,82658.0,0.0636]
[1744368377387,0.121052,82657.0,82656.0,0.1210525]
[1744368377999,0.1539515,82658.0,82657.0,0.121052]
[1744368378301,0.4818891,82659.0,82658.0,0.1210505]
[1744368378600,0.4818491,82659.0,82658.0,0.1210505]
[1744368378798,0.1210891,82659.0,82658.0,0.1210505]
[1744368379098,0.0333,82665.0,82661.0,0.1210462]
[1744368379392,0.1210443,82663.0,82661.0,0.1210462]
[1744368379587,0.36098142,82662.0,82661.0,0.1210462]
[1744368379790,0.0605282,82654.0,82651.0,0.12154356]
[1744368379989,0.1210593,82652.0,82651.0,0.12154356]
[1744368380598,0.1833593,82652.0,82651.0,0.15474356]
[1744368380798,0.1210593,82652.0,82651.0,0.18544356]
[1744368381095,0.0313,82653.0,82651.0,0.18544356]
[1744368381304,0.1523579,82653.0,82652.0,0.1210593]
[1744368381600,0.1523579,82653.0,82651.0,0.06438396]
[1744368381601,0.0605242,82660.0,82659.0,0.1210476]
[1744368381801,0.09187821,82660.0,82659.0,0.1210476]
[1744368382096,0.00018142,82662.0,82659.0,0.1210476]
[1744368382399,0.00018142,82662.0,82661.0,0.1210462]
[1744368383099,0.00022142,82662.0,82661.0,0.1210462]
[1744368383299,0.00018142,82662.0,82661.0,0.1210462]
[1744368383502,0.00022142,82662.0,82661.0,0.1210462]
[1744368384502,0.00018142,82662.0,82661.0,0.1210462]
[1744368384808,5.401e-05,82669.0,82668.0,0.1210359]
[1744368385005,0.21688688,82673.0,82672.0,0.12103]
[1744368385602,0.33791548,82673.0,82672.0,0.12103]
[1744368386603,0.75991548,82673.0,82672.0,0.12103]
[1744368387304,0.5430286,82673.0,82672.0,0.12103]
[1744368389906,0.1210315,82671.0,82670.0,0.0605158]
[1744368390202,0.1815597,82667.0,82666.0,0.1210384]
[1744368390604,0.2464597,82667.0,82666.0,0.1210384]
[1744368393502,0.2464597,82667.0,82666.0,0.1525384]
[1744368394001,0.6072597,82667.0,82666.0,0.1525384]
[1744368394605,0.6072597,82667.0,82666.0,0.1210384]
[1744368395206,0.6072597,82667.0,82666.0,0.1525384]
[1744368398009,0.6072597,82667.0,82666.0,0.1856384]
[1744368398310,0.6072597,82667.0,82666.0,0.1210384]
[1744368399501,0.6072597,82667.0,82666.0,0.1541384]
[1744368401811,0.6072597,82667.0,82666.0,0.0331]
[1744368402512,0.1210388,82666.0,82665.0,0.0322]
[1744368402810,0.1210403,82665.0,82664.0,0.00018142]
[1744368403009,0.1833403,82665.0,82664.0,0.00018142]
[1744368403913,0.1833403,82665.0,82642.0,0.0623]
[1744368403914,0.1210593,82652.0,82642.0,0.0623]
[1744368404113,0.4818593,82652.0,82642.0,0.0623]
[1744368404314,0.5768593,82652.0,82644.0,0.1210705]
[1744368405302,0.5768593,82652.0,82642.0,0.0623]
[1744368405498,0.5768593,82652.0,82642.0,0.0309]
[1744368405707,0.5886939,82652.0,82642.0,0.1519734]
[1744368406010,0.5886939,82652.0,82644.0,0.1210705]
[1744368406608,0.5886939,82652.0,82643.0,0.121072]
[1744368408212,0.5886939,82652.0,82646.0,0.0605334]
[1744368408507,0.5886939,82652.0,82647.0,0.0636]
[1744368408710,0.5567339,82652.0,82647.0,0.0636]
[1744368408911,0.5448993,82652.0,82647.0,0.0636]
[1744368409117,0.5448593,82652.0,82651.0,0.12154476]
[1744368409417,0.5448993,82652.0,82651.0,0.12154476]
[1744368409617,0.82063588,82652.0,82651.0,0.12154476]
[1744368410415,0.79013588,82652.0,82651.0,0.12154476]
[1744368410616,0.79009588,82652.0,82651.0,0.18414476]
[1744368410817,0.79013588,82652.0,82651.0,0.18414476]
[1744368411616,0.75763588,82652.0,82651.0,0.18414476]
[1744368411821,0.39683588,82652.0,82651.0,0.18414476]
[1744368412022,0.27573658,82652.0,82651.0,0.18414476]
[1744368412215,0.27577658,82652.0,82651.0,0.18414476]
[1744368412523,0.27573658,82652.0,82651.0,0.18414476]
[1744368412721,0.39679588,82652.0,82651.0,0.18414476]
[1744368413124,0.1210593,82652.0,82651.0,0.18414476]
[1744368413328,0.1210993,82652.0,82651.0,0.18414476]
[1744368415827,0.1531993,82652.0,82651.0,0.18414476]
[1744368417328,0.1531993,82652.0,82651.0,0.06308396]
[1744368417533,0.1859993,82652.0,82651.0,0.06308396]
[1744368417731,0.1859993,82652.0,82651.0,0.18414476]
[1744368417931,0.1859993,82652.0,82651.0,0.15344476]
[1744368420136,0.24486123,82652.0,82651.0,0.15344476]
[1744368420631,0.0605363,82644.0,82634.0,0.0605425]
[1744368420844,0.0605342,82646.0,82645.0,0.1816028]
[1744368421029,0.0605321,82649.0,82646.0,0.1210681]
[1744368421338,0.1815973,82649.0,82648.0,0.1210652]
[1744368421521,0.3608,82649.0,82648.0,0.1210652]
[1744368421727,0.0314,82651.0,82650.0,0.1210623]
[1744368421924,0.181594,82651.0,82650.0,0.1815934]
[1744368422325,0.181634,82651.0,82650.0,0.1815934]
[1744368422530,4e-05,82651.0,82650.0,0.1815934]
[1744368423142,0.1211008,82651.0,82650.0,0.1815934]
[1744368423638,0.1210608,82651.0,82650.0,0.1815934]
[1744368423838,0.1211008,82651.0,82650.0,0.1815934]
[1744368425131,4e-05,82651.0,82650.0,0.1815934]
[1744368425439,0.1211008,82651.0,82650.0,0.1815934]
[1744368425642,0.1211008,82651.0,82650.0,0.0605311]
[1744368427337,0.1521008,82651.0,82650.0,0.0605311]
[1744368427741,0.1211008,82651.0,82650.0,0.0605311]
[1744368428437,0.1531008,82651.0,82650.0,0.0605311]
[1744368429140,0.03204,82651.0,82650.0,0.0605311]
[1744368429838,0.1531008,82651.0,82650.0,0.0605311]
[1744368431031,0.1859008,82651.0,82650.0,0.0605311]
[1744368431430,0.1815971,82649.0,82648.0,0.121064]
[1744368432349,0.1816014,82648.0,82647.0,0.1210653]
[1744368432546,0.2731347,82648.0,82647.0,0.1210653]
[1744368434447,0.3044347,82648.0,82647.0,0.1210653]
[1744368434648,0.0605362,82644.0,82637.0,0.0605403]
[1744368434835,0.05886405,82649.0,82637.0,0.1816178]
[1744368434836,0.4818798,82638.0,82637.0,0.1816178]
[1744368435748,0.5442798,82638.0,82637.0,0.1816178]
[1744368437651,0.60314385,82638.0,82637.0,0.1816178]
[1744368438147,0.1210828,82636.0,82635.0,0.1534842]
[1744368438846,0.1210828,82636.0,82635.0,0.1210842]
[1744368439048,0.1868828,82636.0,82635.0,0.1210842]
[1744368440050,0.0332,82636.0,82635.0,0.1210842]
[1744368440238,0.0332,82636.0,82635.0,0.1841842]
[1744368440442,0.05886405,82638.0,82637.0,0.1210813]
[1744368440947,0.17994385,82638.0,82637.0,0.1843813]
[1744368441351,0.17998385,82638.0,82637.0,0.1843813]
[1744368441551,0.30231025,82638.0,82637.0,0.1843813]
[1744368441756,0.33451025,82638.0,82637.0,0.1843813]
[1744368441946,0.72641025,82638.0,82637.0,0.1536813]
[1744368442255,0.1210886,82632.0,82631.0,0.2145306]
[1744368442446,0.1210886,82632.0,82631.0,0.2471306]
[1744368442756,0.1843886,82632.0,82631.0,0.1816306]
[1744368442953,0.1843886,82632.0,82631.0,0.2471306]
[1744368444455,0.1210901,82631.0,82630.0,0.3608]
[1744368444651,0.1210945,82628.0,82624.0,0.0605501]
[1744368444855,0.1210945,82628.0,82627.0,0.1215801]
[1744368445056,0.1520945,82628.0,82627.0,0.0004841]
[1744368445259,0.1821945,82628.0,82627.0,0.0004841]
[1744368449256,0.1822345,82628.0,82627.0,0.0004841]
[1744368451160,0.24108121,82628.0,82627.0,0.0004841]
[1744368451359,0.24112121,82628.0,82627.0,0.0004841]
[1744368452259,0.21102121,82628.0,82627.0,0.0004841]
[1744368452458,0.21102121,82628.0,82627.0,0.1215801]
[1744368452658,0.21098121,82628.0,82627.0,0.1215801]
[1744368452962,0.18002121,82628.0,82627.0,0.2162801]
[1744368453153,0.17998121,82628.0,82627.0,0.2162801]
[1744368453762,0.18002121,82628.0,82627.0,0.2162801]
[1744368454167,0.21082121,82628.0,82627.0,0.2162801]
[1744368455060,0.1519345,82628.0,82627.0,0.2162801]
[1744368457664,0.0605465,82629.0,82628.0,0.181638]
[1744368457966,0.0605465,82629.0,82628.0,0.212238]
[1744368458166,0.0605465,82629.0,82628.0,0.244338]
[1744368458367,0.0605465,82629.0,82628.0,0.3048844]
[1744368459561,0.20516757,82629.0,82628.0,0.3048844]
[1744368459756,0.20516757,82629.0,82628.0,0.1232464]
[1744368459969,0.23676757,82629.0,82628.0,0.1232464]
[1744368460172,0.26986757,82629.0,82628.0,0.1232464]
[1744368460469,0.26986757,82629.0,82628.0,0.0306]
[1744368461060,0.1210945,82628.0,82627.0,0.0004841]
[1744368461466,0.1857945,82628.0,82627.0,0.0004841]
[1744368462970,0.1526945,82628.0,82627.0,0.0004841]
[1744368463269,0.21161676,82628.0,82627.0,0.0004841]
[1744368463872,0.21161676,82628.0,82627.0,0.1215801]
[1744368464266,0.21161676,82628.0,82627.0,0.1848801]
[1744368465573,0.21161676,82628.0,82627.0,0.0004841]
[1744368465773,0.27511676,82628.0,82627.0,0.0004841]
[1744368469482,0.24471676,82628.0,82627.0,0.0004841]
[1744368469672,0.24467676,82628.0,82627.0,0.0004841]
[1744368469869,0.24471676,82628.0,82627.0,0.0004841]
[1744368470071,0.24471676,82628.0,82627.0,0.1215801]
[1744368470877,0.24471676,82628.0,82627.0,0.0004841]
[1744368472875,0.24471676,82628.0,82627.0,0.0330841]
[1744368473475,0.24471676,82628.0,82627.0,0.0004841]
[1744368473672,0.24471676,82628.0,82616.0,0.060556]
[1744368473879,0.1211297,82604.0,82603.0,0.12161194]
[1744368474073,0.0605623,82608.0,82607.0,0.1211253]
[1744368474991,0.4819209,82610.0,82609.0,0.1211223]
[1744368475283,0.18186013,82612.0,82611.0,0.1211194]
[1744368476683,0.21226013,82612.0,82611.0,0.1211194]
[1744368476888,0.24336013,82612.0,82611.0,0.1211194]
[1744368477979,0.60416013,82612.0,82611.0,0.1211194]
[1744368478185,0.66304401,82612.0,82611.0,0.1211194]
[1744368479090,0.63194401,82612.0,82611.0,0.1211194]
[1744368479388,0.63194401,82612.0,82611.0,0.1535194]
[1744368479797,0.63198401,82612.0,82611.0,0.1535194]
[1744368480386,0.60158401,82612.0,82611.0,0.1535194]
[1744368481098,0.60154401,82612.0,82611.0,0.1535194]
[1744368481396,0.11966471,82612.0,82611.0,0.1535194]
[1744368483596,0.11962471,82612.0,82611.0,0.1535194]
[1744368483803,0.11966471,82612.0,82611.0,0.1535194]
[1744368484102,0.05910541,82612.0,82611.0,0.1535194]
[1744368484595,0.0328,82637.0,82636.0,0.1210828]
[1744368484787,0.1538813,82637.0,82636.0,0.1210828]
[1744368485384,0.1539213,82637.0,82636.0,0.1210828]
[1744368485690,0.1539213,82637.0,82636.0,0.1823828]
[1744368486598,0.1210842,82635.0,82634.0,0.0605427]
[1744368489700,0.121093,82630.0,82629.0,0.1816383]
[1744368490904,0.481893,82630.0,82629.0,0.2121383]
[1744368493101,0.3608,82630.0,82629.0,0.2121383]
[1744368493302,0.3608,82630.0,82629.0,0.2443383]
[1744368493799,0.36084,82630.0,82629.0,0.2443383]
[1744368494001,4e-05,82630.0,82629.0,0.2443383]
[1744368494197,0.03164,82630.0,82629.0,0.2443383]
[1744368495603,4e-05,82630.0,82629.0,0.2443383]
[1744368496707,0.1812127,82631.0,82630.0,0.1210916]
[1744368497103,0.1812127,82631.0,82630.0,0.1850916]
[1744368497406,0.1812527,82631.0,82630.0,0.1850916]
[1744368498696,4e-05,82631.0,82630.0,0.1850916]
[1744368504610,4e-05,82631.0,82630.0,0.1518916]
[1744368505006,0.03214,82631.0,82630.0,0.1822916]
[1744368505713,0.03214,82631.0,82630.0,0.1518916]
[1744368508111,0.03214,82631.0,82630.0,0.1834916]
[1744368509915,0.03214,82631.0,82630.0,0.20033149]
[1744368510814,0.03214,82631.0,82630.0,0.1834916]
[1744368511415,0.03214,82631.0,82630.0,0.1518916]
[1744368513219,0.03214,82631.0,82630.0,0.16828741]
[1744368513519,0.03214,82631.0,82630.0,0.1210916]
[1744368513724,0.03214,82631.0,82630.0,0.1515916]
[1744368513931,0.03214,82631.0,82630.0,0.1836916]
[1744368514127,0.0321,82631.0,82630.0,0.2002002]
[1744368514821,0.03214,82631.0,82630.0,0.2002002]
[1744368518122,0.03214,82631.0,82630.0,0.1836916]
[1744368518332,0.03214,82631.0,82630.0,0.20023483]
[1744368518632,0.03214,82631.0,82630.0,0.20023555]
[1744368518818,0.03214,82631.0,82630.0,0.1836916]
[1744368519021,0.03214,82631.0,82630.0,0.1515916]
[1744368519229,0.03214,82631.0,82630.0,0.16815123]
[1744368520231,0.03214,82631.0,82630.0,0.1515916]
[1744368520430,0.03214,82631.0,82630.0,0.1994897]
[1744368520632,0.0321,82631.0,82630.0,0.1994897]
[1744368520833,0.03214,82631.0,82630.0,0.1994897]
[1744368522534,0.0321,82631.0,82630.0,0.1994897]
[1744368522733,0.03214,82631.0,82630.0,0.1994897]
[1744368525236,0.03214,82631.0,82630.0,0.6076897]
[1744368525429,0.03214,82631.0,82630.0,0.5762897]
[1744368525634,0.03214,82631.0,82630.0,0.5457897]
[1744368526731,0.03214,82631.0,82630.0,0.5787897]
[1744368526931,0.03214,82631.0,82630.0,0.6089897]
[1744368527128,0.0321,82631.0,82630.0,0.6089897]
[1744368527329,0.03214,82631.0,82630.0,0.6089897]
[1744368528144,0.0321,82631.0,82630.0,0.6089897]
[1744368528445,0.03214,82631.0,82630.0,0.6089897]
[1744368530447,0.03214,82631.0,82630.0,0.60965527]
[1744368531053,0.03214,82631.0,82630.0,0.57945527]
[1744368531556,0.03214,82631.0,82630.0,0.61105527]
[1744368531864,0.03214,82631.0,82630.0,0.54649948]
[1744368532344,0.03214,82631.0,82630.0,0.54631734]
[1744368532544,0.06454,82631.0,82630.0,0.54631734]
[1744368533653,0.0645,82631.0,82630.0,0.54631734]
[1744368534355,0.1856301,82631.0,82630.0,0.54631734]
[1744368535857,0.1856301,82631.0,82630.0,0.5292916]
[1744368536857,0.1856301,82631.0,82630.0,0.54549358]
[1744368537159,0.1856301,82631.0,82630.0,0.13729358]
[1744368537657,0.06454,82631.0,82630.0,0.13729358]
[1744368538048,0.06444,82631.0,82630.0,0.13729358]
[1744368538952,0.06444,82631.0,82630.0,0.1210916]
[1744368539148,0.06434,82631.0,82630.0,0.1210916]
[1744368539758,0.06424,82631.0,82630.0,0.1210916]
[1744368540060,0.06424,82631.0,82630.0,0.1372718]
[1744368540354,0.06424,82631.0,82630.0,0.1210916]
[1744368540355,0.06414,82631.0,82630.0,0.1210916]
[1744368540954,0.06414,82631.0,82630.0,0.13749476]
[1744368541259,0.064,82631.0,82630.0,0.13749476]
[1744368541557,0.064,82631.0,82630.0,0.1210916]
[1744368541860,0.06394,82631.0,82630.0,0.1210916]
[1744368542358,0.06384,82631.0,82630.0,0.13750803]
[1744368542666,0.121093,82629.0,82628.0,0.00018153]
[1744368542853,0.121093,82629.0,82628.0,0.12127603]
[1744368543056,0.152793,82629.0,82628.0,0.12127603]
[1744368543950,0.0317,82629.0,82628.0,0.12127603]
[1744368544162,0.0317,82629.0,82628.0,0.15447603]
[1744368544354,0.03174,82629.0,82628.0,0.18547603]
[1744368544556,0.0317,82629.0,82628.0,0.18547603]
[1744368544756,0.03174,82629.0,82628.0,0.12127603]
[1744368547668,0.0317,82629.0,82628.0,0.18467603]
[1744368547856,0.03174,82629.0,82628.0,0.18467603]
[1744368548058,0.06374,82629.0,82628.0,0.23139933]
[1744368548353,0.06374,82629.0,82628.0,0.21487603]
[1744368548668,0.06374,82629.0,82628.0,0.23140025]
[1744368548861,0.06374,82629.0,82628.0,0.21487603]
[1744368549164,0.06374,82629.0,82628.0,0.23123043]
[1744368549364,0.06374,82629.0,82628.0,0.21487603]
[1744368550666,0.06374,82629.0,82628.0,0.18467603]
[1744368551564,0.06374,82629.0,82628.0,0.15297603]
[1744368552257,0.06374,82629.0,82628.0,0.12127603]
[1744368552662,0.06374,82629.0,82628.0,0.15207603]
[1744368552860,0.06374,82629.0,82628.0,0.12127603]
[1744368553871,0.06374,82629.0,82628.0,0.15237603]
[1744368557669,0.06374,82629.0,82628.0,0.18457603]
[1744368558256,0.06374,82629.0,82628.0,0.15237603]
[1744368558456,0.06374,82629.0,82628.0,0.12127603]
[1744368558662,0.06364,82629.0,82628.0,0.18487603]
[1744368560471,0.03204,82629.0,82628.0,0.18487603]
[1744368560662,0.032,82629.0,82628.0,0.18487603]
[1744368560859,0.03204,82629.0,82628.0,0.18487603]
[1744368561760,0.153133,82629.0,82628.0,0.12127603]
[1744368562169,0.184433,82629.0,82628.0,0.12127603]
[1744368564070,0.184433,82629.0,82628.0,0.00018153]
[1744368565371,0.184433,82629.0,82628.0,0.12127603]
[1744368569669,0.184433,82629.0,82628.0,0.00018153]
[1744368569972,0.1211121,82616.0,82615.0,0.1816622]
[1744368570168,0.4819121,82616.0,82615.0,0.1816622]
[1744368570568,0.4819121,82616.0,82615.0,0.2422186]
[1744368571075,0.5762121,82616.0,82615.0,0.2422186]
[1744368572777,0.75757617,82616.0,82615.0,0.2422186]
[1744368574685,0.181674,82614.0,82613.0,0.1211153]
[1744368574875,0.1816784,82612.0,82611.0,0.1211181]
[1744368575376,0.1816784,82612.0,82611.0,0.1532181]
[1744368575577,0.2459784,82612.0,82611.0,0.1211181]
[1744368576179,0.6067784,82612.0,82611.0,0.1211181]
[1744368577366,0.6067784,82612.0,82611.0,0.1532181]
[1744368577566,0.6067784,82612.0,82611.0,0.0321]
[1744368577768,0.1211267,82606.0,82605.0,0.1534271]
[1744368578174,0.1531267,82606.0,82605.0,0.1534271]
[1744368578375,0.1531267,82606.0,82605.0,0.1211271]
[1744368579071,0.1845267,82606.0,82605.0,0.1511271]
[1744368579683,0.1845267,82606.0,82605.0,0.1211271]
[1744368579875,0.2175267,82606.0,82605.0,0.1211271]
[1744368580076,0.2175267,82606.0,82605.0,0.1511271]
[1744368580779,0.1845267,82606.0,82605.0,0.1511271]
[1744368582979,0.24341372,82606.0,82605.0,0.1511271]
[1744368586879,0.05888702,82606.0,82605.0,0.1511271]
[1744368587079,0.05892702,82606.0,82605.0,0.1843271]
[1744368589091,0.05892702,82606.0,82605.0,0.5451271]
[1744368589277,0.05892702,82606.0,82605.0,0.1843271]
[1744368589478,0.05892702,82606.0,82605.0,0.5451271]
[1744368589679,0.05888702,82606.0,82605.0,0.5451271]
[1744368589886,0.05892702,82606.0,82605.0,0.5451271]
[1744368591780,4e-05,82606.0,82605.0,0.5451271]
[1744368593685,0.18118943,82608.0,82607.0,0.1211253]
[1744368594075,0.18118943,82608.0,82607.0,0.1840253]
[1744368594388,0.1211297,82604.0,82596.0,0.00924064]
[1744368594577,0.1211297,82604.0,82588.0,0.0658]
[1744368594777,0.060574,82592.0,82585.0,0.0301]
[1744368594978,0.1211649,82580.0,82579.0,0.00048438]
[1744368595280,0.1211649,82580.0,82579.0,0.12165038]
[1744368596382,0.4819649,82580.0,82579.0,0.12165038]
[1744368596988,0.3608,82580.0,82579.0,0.12165038]
[1744368597177,0.36084,82580.0,82579.0,0.18605038]
[1744368597382,0.36084,82580.0,82579.0,0.15445038]
[1744368598283,0.36084,82580.0,82579.0,0.12165038]
[1744368598799,0.4820049,82580.0,82579.0,0.12165038]
[1744368599093,0.36084,82580.0,82579.0,0.12165038]
[1744368600192,0.41972702,82580.0,82579.0,0.12165038]
[1744368601190,0.54089192,82580.0,82579.0,0.12165038]
[1744368601390,0.60659192,82580.0,82579.0,0.12165038]
[1744368601793,0.48542702,82580.0,82579.0,0.12165038]
[1744368602195,0.60659192,82580.0,82579.0,0.12165038]
[1744368602890,0.48542702,82580.0,82579.0,0.12165038]
[1744368604695,0.60659192,82580.0,82579.0,0.12165038]
[1744368604991,0.12462702,82580.0,82579.0,0.12165038]
[1744368605393,0.24579192,82580.0,82579.0,0.12165038]
[1744368606094,0.60659192,82580.0,82579.0,0.12165038]
[1744368606689,0.05892702,82580.0,82579.0,0.12165038]
[1744368606996,0.21743953,82585.0,82584.0,0.121159]
[1744368607184,0.00018153,82597.0,82596.0,0.1211414]
[1744368607590,0.15312143,82597.0,82596.0,0.1211414]
[1744368607790,0.15316143,82597.0,82596.0,0.1211414]
[1744368608090,0.18516143,82597.0,82596.0,0.1211414]
[1744368608392,0.18516143,82597.0,82589.0,0.0605752]
[1744368608393,0.1817289,82590.0,82589.0,0.0605752]
[1744368608593,0.4213758,82590.0,82589.0,0.0605752]
[1744368608790,0.032,82590.0,82589.0,0.0605752]
[1744368608995,0.032,82590.0,82589.0,0.1212752]
[1744368608996,0.0319,82590.0,82589.0,0.1212752]
[1744368609499,0.03194,82590.0,82589.0,0.1212752]
[1744368609797,0.03184,82590.0,82589.0,0.1212752]
[1744368610297,0.03174,82590.0,82589.0,0.1212752]
[1744368610494,0.03164,82590.0,82589.0,0.1212752]
[1744368610894,0.03154,82590.0,82589.0,0.1212752]
[1744368611196,0.03144,82590.0,82589.0,0.1212752]
[1744368611402,4e-05,82590.0,82589.0,0.1212752]
[1744368611700,8.153e-05,82597.0,82596.0,0.1211414]